[Event "Live Chess"]
[Site "Chess.com"]
[Date "2024.06.02"]
[Round "-"]
[White "santhoshrlokesh"]
[Black "NAZRIZ1977"]
[Result "0-1"]
[WhiteElo "1471"]
[BlackElo "2077"]
[TimeControl "300"]
[EndTime "8:19:08 PDT"]
[Termination "NAZRIZ1977 won by resignation"]

1. d4 {[%clk 0:04:59]} 1... d5 {[%clk 0:04:57.4]} 2. Bf4 {[%clk 0:04:57.6]} 2...
e6 {[%clk 0:04:56.3]} 3. e3 {[%clk 0:04:57]} 3... f5 {[%clk 0:04:55.7]} 4. Nf3
{[%clk 0:04:55.4]} 4... Nf6 {[%clk 0:04:55.2]} 5. Ng5 {[%clk 0:04:51.3]} 5...
Bd6 {[%clk 0:04:52.7]} 6. Bxd6 {[%clk 0:04:42]} 6... Qxd6 {[%clk 0:04:51.5]} 7.
Nc3 {[%clk 0:04:35.4]} 7... c6 {[%clk 0:04:49.9]} 8. a4 {[%clk 0:04:32.7]} 8...
O-O {[%clk 0:04:48.6]} 9. Bd3 {[%clk 0:04:29]} 9... Nbd7 {[%clk 0:04:47.7]} 10.
O-O {[%clk 0:04:27.3]} 10... Ne4 {[%clk 0:04:45.8]} 11. Ncxe4 {[%clk 0:04:23.4]}
11... fxe4 {[%clk 0:04:44.3]} 12. Be2 {[%clk 0:04:21.9]} 12... Rf6 {[%clk
0:04:42.9]} 13. f3 {[%clk 0:04:20.1]} 13... Rh6 {[%clk 0:04:40.5]} 14. h3 {[%clk
0:04:12.8]} 14... exf3 {[%clk 0:04:38.2]} 15. Nxf3 {[%clk 0:04:02.4]} 15... e5
{[%clk 0:04:33.3]} 16. Ng5 {[%clk 0:03:55.3]} 16... Nf6 {[%clk 0:04:31.2]} 17.
dxe5 {[%clk 0:03:49.1]} 17... Qxe5 {[%clk 0:04:29.2]} 18. Nf3 {[%clk 0:03:32.9]}
18... Qxe3+ {[%clk 0:04:27.8]} 19. Kh1 {[%clk 0:03:29.5]} 19... Ne4 {[%clk
0:04:20.6]} 20. Bd3 {[%clk 0:03:21.5]} 20... Nf2+ {[%clk 0:04:10.4]} 21. Kh2
{[%clk 0:03:15.8]} 21... Nxd1 {[%clk 0:04:08.5]} 22. Raxd1 {[%clk 0:03:13.5]}
22... Qf4+ {[%clk 0:04:07.5]} 23. Kg1 {[%clk 0:03:10]} 23... Bxh3 {[%clk
0:04:03.5]} 24. Nh2 {[%clk 0:02:42.7]} 24... Qe3+ {[%clk 0:03:53.5]} 25. Kh1
{[%clk 0:02:32.7]} 25... Bg4 {[%clk 0:03:52.1]} 26. Rf3 {[%clk 0:02:24.8]} 26...
Bxf3 {[%clk 0:03:45.3]} 27. gxf3 {[%clk 0:02:19.9]} 27... Qf2 {[%clk 0:03:44.2]}
0-1

[Event "Live Chess"]
[Site "Chess.com"]
[Date "2024.06.02"]
[Round "-"]
[White "lateforthesky"]
[Black "Queensandpawns"]
[Result "0-1"]
[WhiteElo "2070"]
[BlackElo "2245"]
[TimeControl "300"]
[EndTime "8:19:38 PDT"]
[Termination "Queensandpawns won by resignation"]

1. e4 {[%clk 0:04:55.3]} 1... e5 {[%clk 0:04:57]} 2. Nf3 {[%clk 0:04:41.5]} 2...
Nf6 {[%clk 0:04:56.9]} 3. Nc3 {[%clk 0:04:39.6]} 3... Bc5 {[%clk 0:04:55]} 4.
Bc4 {[%clk 0:04:37.3]} 4... O-O {[%clk 0:04:53.1]} 5. O-O {[%clk 0:04:35.5]}
5... Nc6 {[%clk 0:04:52.2]} 6. d3 {[%clk 0:04:34.5]} 6... h6 {[%clk 0:04:51]} 7.
h3 {[%clk 0:04:33.2]} 7... d6 {[%clk 0:04:49.6]} 8. a3 {[%clk 0:04:32.5]} 8...
a6 {[%clk 0:04:48.9]} 9. Qe2 {[%clk 0:04:30.1]} 9... b5 {[%clk 0:04:47.9]} 10.
Bb3 {[%clk 0:04:28.5]} 10... Be6 {[%clk 0:04:47.1]} 11. Bxe6 {[%clk 0:04:24.9]}
11... fxe6 {[%clk 0:04:47]} 12. Be3 {[%clk 0:04:23.8]} 12... Nd4 {[%clk
0:04:45.1]} 13. Bxd4 {[%clk 0:04:21.4]} 13... exd4 {[%clk 0:04:45]} 14. Nb1
{[%clk 0:04:18.5]} 14... e5 {[%clk 0:04:44]} 15. Nbd2 {[%clk 0:04:17.2]} 15...
Nh5 {[%clk 0:04:41.2]} 16. Nh2 {[%clk 0:04:07.9]} 16... Nf4 {[%clk 0:04:39.6]}
17. Qg4 {[%clk 0:04:02.6]} 17... Rf6 {[%clk 0:04:38.1]} 18. g3 {[%clk
0:03:51.6]} 18... Rg6 {[%clk 0:04:36]} 19. Qf5 {[%clk 0:03:43.2]} 19... Rg5
{[%clk 0:04:29.5]} 0-1

[Event "Live Chess"]
[Site "Chess.com"]
[Date "2024.06.02"]
[Round "-"]
[White "mychess51"]
[Black "HoarseyHorsey"]
[Result "1-0"]
[WhiteElo "1710"]
[BlackElo "1591"]
[TimeControl "300"]
[EndTime "8:19:41 PDT"]
[Termination "mychess51 won by resignation"]

1. d4 {[%clk 0:04:56.2]} 1... Nf6 {[%clk 0:04:58.7]} 2. c3 {[%clk 0:04:55.2]}
2... d5 {[%clk 0:04:58]} 3. Nf3 {[%clk 0:04:54.7]} 3... Bg4 {[%clk 0:04:57.2]}
4. g3 {[%clk 0:04:54.6]} 4... e6 {[%clk 0:04:56.2]} 5. Bg2 {[%clk 0:04:53]} 5...
c5 {[%clk 0:04:55]} 6. O-O {[%clk 0:04:51.7]} 6... Nc6 {[%clk 0:04:53.8]} 7.
Nbd2 {[%clk 0:04:48.4]} 7... cxd4 {[%clk 0:04:51.2]} 8. Nxd4 {[%clk 0:04:45.3]}
8... Nxd4 {[%clk 0:04:50.4]} 9. cxd4 {[%clk 0:04:44.1]} 9... Bd6 {[%clk
0:04:48.3]} 10. f3 {[%clk 0:04:23]} 10... Bh5 {[%clk 0:04:46.5]} 11. Qa4+ {[%clk
0:04:17.2]} 11... Qd7 {[%clk 0:04:44.1]} 12. Qxd7+ {[%clk 0:04:13.7]} 12... Nxd7
{[%clk 0:04:44]} 13. e4 {[%clk 0:04:07.9]} 13... dxe4 {[%clk 0:04:38]} 14. fxe4
{[%clk 0:04:05.6]} 14... O-O {[%clk 0:04:36.2]} 15. Nf3 {[%clk 0:03:58.5]} 15...
Rac8 {[%clk 0:04:29.7]} 16. Rf2 {[%clk 0:03:52.3]} 16... Rc7 {[%clk 0:04:21.9]}
17. Be3 {[%clk 0:03:45.7]} 17... Rfc8 {[%clk 0:04:19.5]} 18. Raf1 {[%clk
0:03:44.4]} 18... Bb4 {[%clk 0:04:12]} 19. a3 {[%clk 0:03:41.6]} 19... Ba5
{[%clk 0:04:11]} 20. d5 {[%clk 0:03:19.4]} 20... exd5 {[%clk 0:04:06.6]} 21.
exd5 {[%clk 0:03:18.2]} 21... Bb6 {[%clk 0:04:05.3]} 22. Bxb6 {[%clk 0:03:14.5]}
22... Nxb6 {[%clk 0:04:05.2]} 23. Ne5 {[%clk 0:03:10.6]} 23... Nxd5 {[%clk
0:04:00.4]} 24. Bxd5 {[%clk 0:03:08]} 24... Re7 {[%clk 0:03:53]} 25. Nxf7 {[%clk
0:02:42]} 25... Bxf7 {[%clk 0:03:47.8]} 26. Rxf7 {[%clk 0:02:32.3]} 1-0

[Event "Live Chess"]
[Site "Chess.com"]
[Date "2024.06.02"]
[Round "-"]
[White "Bradfield133"]
[Black "JohanKjeldahl"]
[Result "0-1"]
[WhiteElo "1821"]
[BlackElo "1803"]
[TimeControl "300"]
[EndTime "8:19:45 PDT"]
[Termination "JohanKjeldahl won by resignation"]

1. c4 {[%clk 0:04:57.7]} 1... e5 {[%clk 0:04:57.6]} 2. g3 {[%clk 0:04:56.6]}
2... Nc6 {[%clk 0:04:54.2]} 3. Bg2 {[%clk 0:04:55.6]} 3... Nf6 {[%clk
0:04:51.6]} 4. Nc3 {[%clk 0:04:54.1]} 4... Be7 {[%clk 0:04:47.8]} 5. e3 {[%clk
0:04:52.1]} 5... O-O {[%clk 0:04:46.1]} 6. Nge2 {[%clk 0:04:51]} 6... d6 {[%clk
0:04:44.3]} 7. O-O {[%clk 0:04:49.9]} 7... Be6 {[%clk 0:04:41.8]} 8. b3 {[%clk
0:04:46]} 8... a6 {[%clk 0:04:33.8]} 9. Nd5 {[%clk 0:04:43.9]} 9... Bxd5 {[%clk
0:04:24.3]} 10. cxd5 {[%clk 0:04:41.3]} 10... Nb4 {[%clk 0:04:20.4]} 11. Nc3
{[%clk 0:04:37.7]} 11... Nd3 {[%clk 0:04:13.7]} 12. Qc2 {[%clk 0:04:30.9]} 12...
Nxc1 {[%clk 0:04:10.8]} 13. Raxc1 {[%clk 0:04:27.6]} 13... Rc8 {[%clk
0:04:09.6]} 14. Qd1 {[%clk 0:04:16.5]} 14... Nd7 {[%clk 0:04:07.2]} 15. Qe2
{[%clk 0:04:13.3]} 15... f5 {[%clk 0:04:05.7]} 16. d3 {[%clk 0:04:05.3]} 16...
Nf6 {[%clk 0:04:02.3]} 17. f4 {[%clk 0:04:01.2]} 17... exf4 {[%clk 0:03:55.7]}
18. Rxf4 {[%clk 0:03:58.4]} 18... Ng4 {[%clk 0:03:52.9]} 19. h3 {[%clk
0:03:52.5]} 19... Nh6 {[%clk 0:03:50.8]} 20. Qf1 {[%clk 0:03:21.3]} 20... Bg5
{[%clk 0:03:48.2]} 21. Rf3 {[%clk 0:03:18.4]} 21... Qe7 {[%clk 0:03:45.5]} 22.
e4 {[%clk 0:03:09.2]} 22... fxe4 {[%clk 0:03:43.1]} 23. dxe4 {[%clk 0:03:07.1]}
23... Bxc1 {[%clk 0:03:40.4]} 24. Qxc1 {[%clk 0:03:04.9]} 24... Rxf3 {[%clk
0:03:37.3]} 25. Bxf3 {[%clk 0:03:03.6]} 25... Rf8 {[%clk 0:03:35.8]} 26. Kg2
{[%clk 0:03:00.4]} 26... Qf6 {[%clk 0:03:30]} 27. Qe3 {[%clk 0:02:56.5]} 27...
Nf7 {[%clk 0:03:23.4]} 28. Bg4 {[%clk 0:02:50.4]} 28... Ne5 {[%clk 0:03:21.2]}
29. Be6+ {[%clk 0:02:48.7]} 29... Kh8 {[%clk 0:03:20.6]} 30. Qe2 {[%clk
0:02:42.6]} 30... Ng6 {[%clk 0:02:52.5]} 31. Nd1 {[%clk 0:02:38.4]} 31... Qd4
{[%clk 0:02:47.9]} 32. Bf5 {[%clk 0:02:28]} 32... Ne7 {[%clk 0:02:40.5]} 33. Bg4
{[%clk 0:02:18.9]} 33... Qe5 {[%clk 0:02:21.8]} 34. h4 {[%clk 0:02:09.5]} 34...
g6 {[%clk 0:02:16.2]} 35. Bf3 {[%clk 0:02:04.8]} 35... c6 {[%clk 0:02:09.1]} 36.
Ne3 {[%clk 0:02:01.7]} 36... cxd5 {[%clk 0:02:06.9]} 37. exd5 {[%clk 0:01:48.8]}
37... Nf5 {[%clk 0:01:56.9]} 38. Kf2 {[%clk 0:01:43.7]} 38... Nd4 {[%clk
0:01:54]} 39. Ng4 {[%clk 0:01:32.5]} 39... Qxe2+ {[%clk 0:01:51.6]} 0-1

[Event "Live Chess"]
[Site "Chess.com"]
[Date "2024.06.02"]
[Round "-"]
[White "missedJariChance"]
[Black "best137"]
[Result "0-1"]
[WhiteElo "1359"]
[BlackElo "1528"]
[TimeControl "300"]
[EndTime "8:19:48 PDT"]
[Termination "best137 won by resignation"]

1. b3 {[%clk 0:04:55.2]} 1... d5 {[%clk 0:04:58.5]} 2. Bb2 {[%clk 0:04:54.4]}
2... Nf6 {[%clk 0:04:58.1]} 3. Nf3 {[%clk 0:04:52.9]} 3... Nc6 {[%clk
0:04:57.4]} 4. e3 {[%clk 0:04:51.9]} 4... Bg4 {[%clk 0:04:56.3]} 5. Be2 {[%clk
0:04:50.5]} 5... g6 {[%clk 0:04:55.5]} 6. c4 {[%clk 0:04:47.1]} 6... dxc4 {[%clk
0:04:44.4]} 7. Bxc4 {[%clk 0:04:45.3]} 7... Bg7 {[%clk 0:04:42.3]} 8. O-O {[%clk
0:04:37.4]} 8... O-O {[%clk 0:04:40.1]} 9. d4 {[%clk 0:04:32]} 9... Re8 {[%clk
0:04:22.9]} 10. Be2 {[%clk 0:04:27.5]} 10... Nd7 {[%clk 0:04:00.6]} 11. h3
{[%clk 0:04:24.1]} 11... Bxf3 {[%clk 0:03:50.2]} 12. Bxf3 {[%clk 0:04:20.9]}
12... e5 {[%clk 0:03:49.4]} 13. Bxc6 {[%clk 0:04:11]} 13... bxc6 {[%clk
0:03:46.4]} 14. Nd2 {[%clk 0:04:08.2]} 14... exd4 {[%clk 0:03:40.4]} 15. exd4
{[%clk 0:04:05.9]} 15... c5 {[%clk 0:03:40]} 16. Nf3 {[%clk 0:03:40.1]} 16...
cxd4 {[%clk 0:03:30]} 17. Nxd4 {[%clk 0:03:30.5]} 17... c5 {[%clk 0:03:28.1]}
18. Nc6 {[%clk 0:03:25.7]} 18... Qc7 {[%clk 0:03:01.7]} 19. Bxg7 {[%clk
0:03:16.7]} 19... Kxg7 {[%clk 0:03:01.6]} 20. Qf3 {[%clk 0:03:12.7]} 20... Rac8
{[%clk 0:02:49.6]} 21. Qc3+ {[%clk 0:03:08.3]} 21... Kg8 {[%clk 0:02:37.3]} 22.
Na5 {[%clk 0:03:00.3]} 22... Re2 {[%clk 0:01:59.8]} 23. Nc4 {[%clk 0:02:50.9]}
23... Rce8 {[%clk 0:01:57.2]} 24. a3 {[%clk 0:02:31.3]} 24... Nb6 {[%clk
0:01:51.7]} 25. Rad1 {[%clk 0:02:23.9]} 25... Nxc4 {[%clk 0:01:45]} 26. Qxc4
{[%clk 0:02:18.2]} 26... Qa5 {[%clk 0:01:34.2]} 27. a4 {[%clk 0:02:09.8]} 27...
Re1 {[%clk 0:01:30.1]} 28. Kh2 {[%clk 0:01:50.7]} 28... Qc7+ {[%clk 0:01:18.9]}
29. Kg1 {[%clk 0:01:41.2]} 29... Rxf1+ {[%clk 0:01:10.4]} 30. Rxf1 {[%clk
0:01:39.7]} 30... Qd6 {[%clk 0:00:58.4]} 31. a5 {[%clk 0:01:29.5]} 31... Qd4
{[%clk 0:00:56.5]} 32. Qb5 {[%clk 0:01:19.3]} 32... Rd8 {[%clk 0:00:45.1]} 33.
Qb7 {[%clk 0:01:14]} 33... Qd7 {[%clk 0:00:32.9]} 34. Qf3 {[%clk 0:01:06]} 34...
Qd5 {[%clk 0:00:30]} 35. Qc3 {[%clk 0:01:03.6]} 35... Qd4 {[%clk 0:00:26.1]} 36.
Qb2 {[%clk 0:00:59.6]} 36... Qxb2 {[%clk 0:00:24.2]} 0-1

[Event "Live Chess"]
[Site "Chess.com"]
[Date "2024.06.02"]
[Round "-"]
[White "dmitro74"]
[Black "CheckThis4"]
[Result "0-1"]
[WhiteElo "1739"]
[BlackElo "2677"]
[TimeControl "300"]
[EndTime "8:19:49 PDT"]
[Termination "CheckThis4 won on time"]

1. d4 {[%clk 0:04:57.1]} 1... d5 {[%clk 0:04:57.9]} 2. c4 {[%clk 0:04:55.8]}
2... e5 {[%clk 0:04:56.4]} 3. dxe5 {[%clk 0:04:53.7]} 3... d4 {[%clk 0:04:54.7]}
4. Nf3 {[%clk 0:04:52.6]} 4... Nc6 {[%clk 0:04:53.3]} 5. Bg5 {[%clk 0:04:49.3]}
5... Bb4+ {[%clk 0:04:30.6]} 6. Nbd2 {[%clk 0:04:36]} 6... f6 {[%clk 0:04:21.8]}
7. exf6 {[%clk 0:04:34.1]} 7... Nxf6 {[%clk 0:04:20.2]} 8. a3 {[%clk 0:04:32.2]}
8... Be7 {[%clk 0:04:10.5]} 9. Qc2 {[%clk 0:04:23.2]} 9... Be6 {[%clk 0:04:07]}
10. e3 {[%clk 0:04:18.9]} 10... Qd7 {[%clk 0:04:02.9]} 11. exd4 {[%clk
0:04:13.1]} 11... Nxd4 {[%clk 0:03:58.5]} 12. Nxd4 {[%clk 0:04:11.3]} 12... Qxd4
{[%clk 0:03:58.4]} 13. Nf3 {[%clk 0:04:09.8]} 13... Qd7 {[%clk 0:03:54.2]} 14.
Rd1 {[%clk 0:04:05.8]} 14... Qc6 {[%clk 0:03:50.1]} 15. Be2 {[%clk 0:03:56.3]}
15... O-O {[%clk 0:03:49]} 16. O-O {[%clk 0:03:54.7]} 16... Rae8 {[%clk
0:03:47.8]} 17. Nd4 {[%clk 0:03:49.5]} 17... Qd7 {[%clk 0:03:40.1]} 18. Nf5
{[%clk 0:03:32]} 18... Qc8 {[%clk 0:03:34.7]} 19. Nxe7+ {[%clk 0:03:29.2]} 19...
Rxe7 {[%clk 0:03:34.6]} 20. Bf3 {[%clk 0:03:17.2]} 20... c6 {[%clk 0:03:30.8]}
21. Rfe1 {[%clk 0:03:14]} 21... h6 {[%clk 0:03:27.3]} 22. Bf4 {[%clk 0:03:08.3]}
22... Ref7 {[%clk 0:03:11.4]} 23. Bd6 {[%clk 0:02:47.9]} 23... Re8 {[%clk
0:03:09.9]} 24. Qc3 {[%clk 0:02:33.1]} 24... Bf5 {[%clk 0:02:54.9]} 25. Be5
{[%clk 0:02:25.4]} 25... Ng4 {[%clk 0:02:47.2]} 26. Bg3 {[%clk 0:02:16.8]} 26...
Ref8 {[%clk 0:02:37.3]} 27. h3 {[%clk 0:02:14.2]} 27... Nf6 {[%clk 0:02:35.8]}
28. Bd6 {[%clk 0:02:06.1]} 28... Rd8 {[%clk 0:02:31.6]} 29. Rd4 {[%clk
0:01:39.5]} 29... Bg6 {[%clk 0:02:19.8]} 30. Red1 {[%clk 0:01:33.2]} 30... Kh7
{[%clk 0:02:16.5]} 31. Be5 {[%clk 0:01:19.3]} 31... Rxd4 {[%clk 0:02:12.2]} 32.
Qxd4 {[%clk 0:01:15.7]} 32... Qe6 {[%clk 0:02:10.7]} 33. Qc3 {[%clk 0:00:57.8]}
33... Nd7 {[%clk 0:02:04.6]} 34. Bd4 {[%clk 0:00:53.7]} 34... Nb6 {[%clk
0:01:54.1]} 35. b3 {[%clk 0:00:51]} 35... Nd7 {[%clk 0:01:48.9]} 36. Re1 {[%clk
0:00:49.2]} 36... Qd6 {[%clk 0:01:43.3]} 37. Rd1 {[%clk 0:00:43.3]} 37... Qf8
{[%clk 0:01:37.2]} 38. Bg4 {[%clk 0:00:37.5]} 38... Nf6 {[%clk 0:01:33.7]} 39.
Be6 {[%clk 0:00:35.8]} 39... Re7 {[%clk 0:01:28.3]} 40. Re1 {[%clk 0:00:28.9]}
40... Ne4 {[%clk 0:01:07.7]} 41. Qe3 {[%clk 0:00:12.4]} 41... Rxe6 {[%clk
0:01:03.7]} 42. f3 {[%clk 0:00:11.3]} 42... Ng5 {[%clk 0:01:00.9]} 43. Qf2
{[%clk 0:00:07.8]} 43... Rxe1+ {[%clk 0:00:58.2]} 44. Qxe1 {[%clk 0:00:06.9]}
44... Qf7 {[%clk 0:00:54.5]} 45. Qe5 {[%clk 0:00:04.6]} 45... Ne6 {[%clk
0:00:52.5]} 46. Bc3 {[%clk 0:00:00.2]} 46... c5 {[%clk 0:00:51.2]} 0-1

[Event "Live Chess"]
[Site "Chess.com"]
[Date "2024.06.02"]
[Round "-"]
[White "Eva3337"]
[Black "RichardABates"]
[Result "0-1"]
[WhiteElo "1167"]
[BlackElo "2373"]
[TimeControl "300"]
[EndTime "8:20:05 PDT"]
[Termination "RichardABates won by resignation"]

1. e4 {[%clk 0:04:56]} 1... c5 {[%clk 0:04:58.6]} 2. Nf3 {[%clk 0:04:55.1]} 2...
d6 {[%clk 0:04:57.6]} 3. c3 {[%clk 0:04:54.2]} 3... Nf6 {[%clk 0:04:56]} 4. Bd3
{[%clk 0:04:53.3]} 4... Nc6 {[%clk 0:04:53.2]} 5. O-O {[%clk 0:04:51.9]} 5... g5
{[%clk 0:04:52]} 6. Re1 {[%clk 0:04:51]} 6... g4 {[%clk 0:04:50.3]} 7. Nh4
{[%clk 0:04:47.4]} 7... Rg8 {[%clk 0:04:48.3]} 8. g3 {[%clk 0:04:43.7]} 8... Bh6
{[%clk 0:04:38.9]} 9. Bc2 {[%clk 0:04:41.1]} 9... Bg5 {[%clk 0:04:37.6]} 10. Ng2
{[%clk 0:04:36]} 10... Ne5 {[%clk 0:04:34.1]} 11. Ne3 {[%clk 0:04:02.7]} 11...
Nf3+ {[%clk 0:04:30.7]} 12. Kg2 {[%clk 0:03:59]} 12... Bxe3 {[%clk 0:04:29]} 13.
Rxe3 {[%clk 0:03:48.3]} 13... Rg5 {[%clk 0:04:22.2]} 14. d4 {[%clk 0:03:42.5]}
14... Rh5 {[%clk 0:04:18.7]} 15. h4 {[%clk 0:03:36.4]} 15... gxh3+ {[%clk
0:04:14.6]} 16. Kxf3 {[%clk 0:03:35.1]} 16... Bg4+ {[%clk 0:04:12.6]} 0-1

[Event "Live Chess"]
[Site "Chess.com"]
[Date "2024.06.02"]
[Round "-"]
[White "booktrunk"]
[Black "Hoogleboogle"]
[Result "1-0"]
[WhiteElo "1490"]
[BlackElo "1197"]
[TimeControl "300"]
[EndTime "8:20:18 PDT"]
[Termination "booktrunk won by resignation"]

1. d4 {[%clk 0:04:50]} 1... d5 {[%clk 0:04:57.6]} 2. Nc3 {[%clk 0:04:49.9]} 2...
Nf6 {[%clk 0:04:55.3]} 3. Bf4 {[%clk 0:04:48.7]} 3... a6 {[%clk 0:04:47.5]} 4.
e3 {[%clk 0:04:42]} 4... Bf5 {[%clk 0:04:45.7]} 5. Bd3 {[%clk 0:04:39.8]} 5...
Bg6 {[%clk 0:04:40.7]} 6. h4 {[%clk 0:04:36.8]} 6... h5 {[%clk 0:04:37.7]} 7.
Bxg6 {[%clk 0:04:34.3]} 7... fxg6 {[%clk 0:04:35.7]} 8. Nf3 {[%clk 0:04:31.7]}
8... Ne4 {[%clk 0:04:28.3]} 9. Nxe4 {[%clk 0:04:28.2]} 9... dxe4 {[%clk
0:04:26.8]} 10. Ne5 {[%clk 0:04:27.2]} 10... Nc6 {[%clk 0:04:16.2]} 11. Nxg6
{[%clk 0:04:22.6]} 11... Rh6 {[%clk 0:04:09.5]} 12. Bxh6 {[%clk 0:04:20.1]}
12... gxh6 {[%clk 0:04:08.7]} 13. Qxh5 {[%clk 0:04:15.4]} 13... Kd7 {[%clk
0:04:05.9]} 14. Ne5+ {[%clk 0:04:12.5]} 14... Kc8 {[%clk 0:04:04.1]} 15. Nf7
{[%clk 0:04:07.5]} 15... Qd7 {[%clk 0:03:59.6]} 16. Nxh6 {[%clk 0:03:58.7]}
16... Bxh6 {[%clk 0:03:56.8]} 17. Qxh6 {[%clk 0:03:56.5]} 17... Kb8 {[%clk
0:03:56.1]} 18. Qf8+ {[%clk 0:03:50.5]} 18... Ka7 {[%clk 0:03:54.9]} 19. Qf4
{[%clk 0:03:46.8]} 19... Nb4 {[%clk 0:03:49.8]} 20. O-O-O {[%clk 0:03:42.8]}
20... Nxa2+ {[%clk 0:03:42.1]} 21. Kd2 {[%clk 0:03:38.8]} 21... c5 {[%clk
0:03:32.3]} 22. Qxe4 {[%clk 0:03:36.3]} 22... cxd4 {[%clk 0:03:27.2]} 23. Qxd4+
{[%clk 0:03:33.5]} 23... Qxd4+ {[%clk 0:03:04.9]} 24. exd4 {[%clk 0:03:31.8]}
24... Rd8 {[%clk 0:03:01.1]} 25. c3 {[%clk 0:03:29.3]} 25... b5 {[%clk
0:02:55.7]} 26. Rhe1 {[%clk 0:03:25.8]} 26... b4 {[%clk 0:02:50.4]} 27. Rxe7+
{[%clk 0:03:23.4]} 27... Kb6 {[%clk 0:02:45.8]} 28. Rde1 {[%clk 0:03:21.7]}
28... bxc3+ {[%clk 0:02:41.8]} 29. bxc3 {[%clk 0:03:19.5]} 29... Rc8 {[%clk
0:02:37.5]} 30. Rb1+ {[%clk 0:03:15.2]} 30... Ka5 {[%clk 0:02:35.8]} 31. Ra1
{[%clk 0:03:13.4]} 1-0

[Event "Live Chess"]
[Site "Chess.com"]
[Date "2024.06.02"]
[Round "-"]
[White "bill77678"]
[Black "Purple1szed"]
[Result "0-1"]
[WhiteElo "1840"]
[BlackElo "2006"]
[TimeControl "300"]
[EndTime "8:20:29 PDT"]
[Termination "Purple1szed won by resignation"]

1. e4 {[%clk 0:04:58.4]} 1... e5 {[%clk 0:04:58.7]} 2. Nf3 {[%clk 0:04:57.8]}
2... Nc6 {[%clk 0:04:58.3]} 3. d4 {[%clk 0:04:57.2]} 3... exd4 {[%clk
0:04:57.6]} 4. Bc4 {[%clk 0:04:56.4]} 4... Bc5 {[%clk 0:04:56.6]} 5. c3 {[%clk
0:04:55]} 5... Nf6 {[%clk 0:04:56.3]} 6. e5 {[%clk 0:04:42.8]} 6... d5 {[%clk
0:04:54.9]} 7. Bb5 {[%clk 0:04:41.6]} 7... Ne4 {[%clk 0:04:52.8]} 8. Nxd4 {[%clk
0:04:25.6]} 8... O-O {[%clk 0:04:44.2]} 9. Bxc6 {[%clk 0:04:22.4]} 9... bxc6
{[%clk 0:04:44.1]} 10. Be3 {[%clk 0:04:20.8]} 10... Bxd4 {[%clk 0:04:16.5]} 11.
cxd4 {[%clk 0:04:15.3]} 11... Bf5 {[%clk 0:04:13.7]} 12. O-O {[%clk 0:04:13.3]}
12... Rb8 {[%clk 0:04:10.1]} 13. f3 {[%clk 0:04:10.5]} 13... Ng5 {[%clk
0:04:00]} 14. f4 {[%clk 0:04:09.2]} 14... Ne4 {[%clk 0:03:58.5]} 15. b3 {[%clk
0:04:05.7]} 15... f6 {[%clk 0:03:50.6]} 16. Nd2 {[%clk 0:04:02.9]} 16... fxe5
{[%clk 0:03:48.6]} 17. dxe5 {[%clk 0:03:54.2]} 17... Nc3 {[%clk 0:03:45.7]} 18.
Qh5 {[%clk 0:03:38]} 18... Bg6 {[%clk 0:03:41]} 19. Qf3 {[%clk 0:03:26.2]} 19...
d4 {[%clk 0:03:38.7]} 20. Bf2 {[%clk 0:03:20.6]} 20... d3 {[%clk 0:03:35]} 21.
Nc4 {[%clk 0:03:14]} 21... Ne2+ {[%clk 0:03:32.8]} 22. Kh1 {[%clk 0:03:10.5]}
22... Rxf4 {[%clk 0:03:29.7]} 23. Qxc6 {[%clk 0:03:02.1]} 23... Be4 {[%clk
0:03:20.2]} 24. Qe6+ {[%clk 0:02:59.6]} 24... Kh8 {[%clk 0:03:18]} 25. Be3
{[%clk 0:02:54.4]} 25... Rxf1+ {[%clk 0:02:56.6]} 26. Rxf1 {[%clk 0:02:54.3]}
26... Qh4 {[%clk 0:02:47.7]} 27. Rf2 {[%clk 0:02:16.3]} 27... Qh5 {[%clk
0:02:16.3]} 28. Nb2 {[%clk 0:01:40.9]} 28... h6 {[%clk 0:01:49.3]} 29. Qf7
{[%clk 0:01:29.6]} 29... Qxe5 {[%clk 0:01:21.1]} 30. Nc4 {[%clk 0:01:26.8]}
30... Qd5 {[%clk 0:00:58.9]} 31. Bxh6 {[%clk 0:01:20.6]} 31... Qxf7 {[%clk
0:00:56]} 32. Rxf7 {[%clk 0:01:17.9]} 32... gxh6 {[%clk 0:00:54]} 33. Re7 {[%clk
0:01:15.4]} 33... Bd5 {[%clk 0:00:47.6]} 34. Ne5 {[%clk 0:01:01]} 34... d2
{[%clk 0:00:40.9]} 35. Ng6+ {[%clk 0:00:58.1]} 35... Kg8 {[%clk 0:00:39.8]} 0-1

[Event "Live Chess"]
[Site "Chess.com"]
[Date "2024.06.02"]
[Round "-"]
[White "Inglaterra"]
[Black "Plimsol"]
[Result "0-1"]
[WhiteElo "2061"]
[BlackElo "2377"]
[TimeControl "300"]
[EndTime "8:20:33 PDT"]
[Termination "Plimsol won by resignation"]

1. e4 {[%clk 0:04:55.9]} 1... e5 {[%clk 0:04:58.7]} 2. Nf3 {[%clk 0:04:55]} 2...
Nc6 {[%clk 0:04:57.9]} 3. d4 {[%clk 0:04:53.2]} 3... exd4 {[%clk 0:04:56.3]} 4.
Nxd4 {[%clk 0:04:53.1]} 4... g6 {[%clk 0:04:54.5]} 5. Bc4 {[%clk 0:04:46.2]}
5... Bg7 {[%clk 0:04:53.2]} 6. Be3 {[%clk 0:04:45.8]} 6... Nf6 {[%clk
0:04:51.6]} 7. Nc3 {[%clk 0:04:43.2]} 7... O-O {[%clk 0:04:49.8]} 8. Nxc6 {[%clk
0:04:39.3]} 8... bxc6 {[%clk 0:04:47.5]} 9. O-O {[%clk 0:04:38.3]} 9... Re8
{[%clk 0:04:44.8]} 10. f3 {[%clk 0:04:36.1]} 10... d5 {[%clk 0:04:43.7]} 11. Bd3
{[%clk 0:04:33.1]} 11... d4 {[%clk 0:04:41.8]} 12. Bf2 {[%clk 0:04:27]} 12...
dxc3 {[%clk 0:04:40.1]} 13. bxc3 {[%clk 0:04:26.6]} 13... Be6 {[%clk 0:04:34.5]}
14. Rb1 {[%clk 0:04:23.4]} 14... Bxa2 {[%clk 0:04:31.3]} 15. Rb7 {[%clk
0:04:19.5]} 15... a5 {[%clk 0:04:29.5]} 16. c4 {[%clk 0:04:18.1]} 16... Nd7
{[%clk 0:04:21.1]} 17. Qc1 {[%clk 0:03:46.5]} 17... Qc8 {[%clk 0:04:19.1]} 18.
Ra7 {[%clk 0:03:38]} 18... Rxa7 {[%clk 0:04:17.1]} 19. Bxa7 {[%clk 0:03:37.9]}
19... Ne5 {[%clk 0:04:01.9]} 20. Bf2 {[%clk 0:03:32.1]} 20... Bxc4 {[%clk
0:03:58.7]} 0-1